Cogmind - Beta 10.2 @@@ ROGUE MODE // 2022.02.18 @ 17:04:14 Player: Abstractlime Result: Destroyed by D-53 Grenadier with Mini Grenade Launcher Performance ------------- Evolutions (0) 0 Regions Visited (2) 400 Robots Destroyed (8) 40 Value Destroyed (154) 154 Prototype IDs (0) 0 Alien Tech Used (0) 0 Bonus (0) 0 TOTAL SCORE: 594 Bonus ------- None Cogmind --------- Core Integrity 0/250 Matter 300/300 Energy 94/100 System Corruption 0% Temperature Cool (0) Movement Walking (120) Location -10/Mines Parts ------- > --- POWER (1) -------- (None) > --- PROPULSION (2) --- Aluminum Leg > --- UTILITY (2) ------ Small Storage Unit > --- WEAPON (2) ------- Rocket Launcher > --- INVENTORY (6) ---- Carbon-fiber Leg Peak State ------------ > --- POWER ------------ Light Nuclear Core > --- PROPULSION ------- Wheel > --- UTILITY ---------- Small Storage Unit > --- WEAPON ----------- Particle Gun Assault Rifle > --- INVENTORY -------- Aluminum Leg Aluminum Leg EM Pulse Gun [Rating: 8] Favorites ----------- Power Light Ion Engine Engine Light Ion Engine Power Core Light Nuclear Core Propulsion Wheel Leg Aluminum Leg Wheel Wheel Utility Small Storage Unit Storage Small Storage Unit Weapon Assault Rifle Energy Gun EM Pulse Gun Ballistic Gun Assault Rifle Launcher Rocket Launcher Special Weapon Mining Laser Build | -11 -10 -10 ------- Run | Scr Mat Min Slots Evolved . | . . . Power . | . . . Propulsion . | . . . Utility . | . . . Weapon . | . . . Parts Attached 16 | 6 2 8 Power 2 | 1 . 1 Engine 1 | 1 . . Core 1 | . . 1 Reactor . | . . . Propulsion 5 | 2 1 2 Treads . | . . . Leg 2 | . . 2 Wheel 3 | 2 1 . Hover . | . . . Flight . | . . . Utility 1 | 1 . . Device . | . . . Storage 1 | 1 . . Processor . | . . . Hackware . | . . . Protection . | . . . Artifact . | . . . Weapon 8 | 2 1 5 Energy Gun 3 | 1 . 2 Energy Cannon . | . . . Ballistic Gun 3 | 1 1 1 Ballistic Cannon . | . . . Launcher 1 | . . 1 Special Weapon 1 | . . 1 Impact Weapon . | . . . Slashing Weapon . | . . . Piercing Weapon . | . . . Special Melee Weapon . | . . . Unidentified Prototypes . | . . . Parts Lost 12 | . 2 10 Power 2 | . . 2 Propulsion 4 | . 1 3 Utility . | . . . Weapon 6 | . 1 5 Highest Loss Streak 8 | . 1 8 Average Slot Usage (%) 71 | . 77 68 Engine 6 | . 14 1 Leg 14 | . . 22 Wheel 13 | . 26 4 Storage 14 | . 14 14 Energy Gun 8 | . 2 11 Ballistic Gun 9 | . 19 2 Launcher 4 | . . 7 Special Weapon 1 | . . 1 Naked Turns . | . . . Heaviest Build 11 | 11 11 11 Greatest Support 20 | 20 20 20 Greatest Overweight (x) 1 | . 1 . Average Overweight (x) . | . . . Largest Inventory Capacity 6 | 6 6 6 Average Capacity 5 | 5 6 6 Most Carried 6 | 5 6 6 Average Carried 2 | 2 4 1 Final Capacity 6 | 6 6 6 Final Carried 6 | 4 6 1 Class Distribution -------------------- 100% | Mutant Dominant Class ---------------- Mutant | -10/Materials Mutant | -10/Mines Resources | -11 -10 -10 ----------- Run | Scr Mat Min Matter Collected 431 | 200 124 107 Remotely . | . . . Salvage Created 312 | . 231 81 Parts 16 | . 16 . Haulers Intercepted . | . . . Recyclers Shooed . | . . . Parts Field Recycled . | . . . Retrieved Matter . | . . . Parts Self-Destructed . | . . . Prevented . | . . . Kills | -11 -10 -10 ------- Run | Scr Mat Min Combat Hostiles Destroyed 10 | . 5 5 Guns 10 | . 5 5 Classes Destroyed 5 | . 4 1 Worker 1 | . 1 . Watcher 2 | . 2 . Swarmer 3 | . 3 . Grunt 2 | . 2 . Assembled 5 | . . 5 Best Kill Streak 5 | . 4 5 Combat Bots Only 5 | . 3 5 Max Kills in Single Turn 1 | . 1 1 Gunslinging . | . . . Exploded . | . . . Melee . | . . . Uniques/NPCs Destroyed . | . . . Combat | -11 -10 -10 -------- Run | Scr Mat Min Damage Taken 1060 | . 294 766 Core 275 | . 67 208 Absorbed by Shields . | . . . Core Remaining (%) 100 | 100 . . Volleys Fired 42 | . 28 14 Largest 2 | . 2 2 Hottest 120 | . 70 120 Shots Fired 59 | . 43 16 Gun 58 | . 43 15 Cannon . | . . . Launcher . | . . . Special 1 | . . 1 Kinetic 42 | . 38 4 Thermal 7 | . 5 2 Explosive . | . . . Electromagnetic 10 | . . 10 Robot Hit Streak 5 | . 5 3 Robot Miss Streak 3 | . 2 3 Penetration Max . | . . . Secondary Targets 2 | . 2 . Max Gunslinging Chain 1 | . 1 . Shots Hit Robots 34 | . 26 8 Core Hits 20 | . 11 9 Critical Hits . | . . . Critical Kills . | . . . Critical Parts Destroyed . | . . . Melee Attacks . | . . . Impact . | . . . Slashing . | . . . Piercing . | . . . Sneak Attacks . | . . . Combat Hostiles . | . . . Follow-up Attacks . | . . . Damage Inflicted 477 | . 358 119 Guns 477 | . 358 119 Cannons . | . . . Explosions . | . . . Melee . | . . . Ramming . | . . . Kinetic 323 | . 294 29 Thermal 82 | . 64 18 Explosive . | . . . Electromagnetic 72 | . . 72 Impact . | . . . Slashing . | . . . Piercing . | . . . Highest Corruption . | . . . Average Corruption . | . . . Corruption Purged . | . . . Overload Shots . | . . . Overflow Damage . | . . . Projectiles . | . . . Explosions . | . . . Melee . | . . . Knockbacks . | . . . Impact . | . . . Kinetic . | . . . Secondary . | . . . Self-Inflicted Damage . | . . . Shots . | . . . Rammed . | . . . Targets Rammed 1 | . . 1 Kicked 1 | . . 1 Crushed . | . . . Highest Temperature 45 | . 45 30 Average Temperature 17 | . 16 17 Received Heat Transfer 81 | . 81 . Siege Activations . | . . . Robots Corrupted . | . . . Combat Hostiles . | . . . Parts Fried . | . . . Impact Corruptions . | . . . Robots Melted . | . . . Combat Hostiles . | . . . Parts Melted . | . . . Heat Transferred 222 | . 185 37 Parts Sabotaged . | . . . Parts Stolen . | . . . Parts Stripped . | . . . Power Chain Reactions . | . . . Missiles Intercepted . | . . . Alert | -11 -10 -10 ------- Run | Scr Mat Min Peak Influence 179 | . 179 69 Initial 69 | . . 69 Average 39 | . 97 11 Maximum Alert Level . | . . . Low Security (%) 100 | 100 100 100 Level 1 . | . . . Level 2 . | . . . Level 3 . | . . . Level 4 . | . . . Level 5 . | . . . High Security . | . . . Max Security . | . . . Squads Dispatched 1 | . 1 . Investigation 1 | . 1 . Extermination . | . . . Reinforcement . | . . . Assault . | . . . Garrison . | . . . Intercept . | . . . Construction Impeded . | . . . Haulers Reinforced . | . . . Stealth | -11 -10 -10 --------- Run | Scr Mat Min Distress Signals 2 | . 2 . Communications Jammed . | . . . Distress Signals . | . . . Times Spotted 16 | . 9 7 Peak Tracking Total 4 | . 3 4 Tactical Retreats 1 | . 1 . Traps | -11 -10 -10 ------- Run | Scr Mat Min Traps Triggered 1 | . 1 . Indirectly . | . . . Trap Hack Attempts . | . . . Triggered . | . . . Disarmed . | . . . Reprogrammed . | . . . Reused . | . . . Traps Extracted . | . . . Installed . | . . . Triggered . | . . . Machines | -11 -10 -10 ---------- Run | Scr Mat Min Machines Disabled 2 | . 2 . Max in Single Turn 1 | . 1 . Machines Sabotaged . | . . . Garrisons Compromised . | . . . Overloaded Fab Kills . | . . . Fab Network Shutdowns . | . . . Hacking | -11 -10 -10 --------- Run | Scr Mat Min Machines Accessed . | . . . Terminals . | . . . Fabricators . | . . . Repair Stations . | . . . Recycling Units . | . . . Scanalyzers . | . . . Garrison Access . | . . . Total Hacks . | . . . Successful . | . . . Failed . | . . . Catastrophic . | . . . Database Lockouts . | . . . Manual . | . . . Terminals . | . . . Fabricators . | . . . Repair Stations . | . . . Recycling Units . | . . . Scanalyzers . | . . . Garrison Access . | . . . Terminal Hacks . | . . . Fabricator Hacks . | . . . Repair Station Hacks . | . . . Recycling Unit Hacks . | . . . Scanalyzer . | . . . Garrison Access Hacks . | . . . Unauthorized Hacks . | . . . Terminals . | . . . Fabricators . | . . . Repair Stations . | . . . Recycling Units . | . . . Scanalyzers . | . . . Garrison Access . | . . . Data Cores Recovered . | . . . Used . | . . . Hacking Detections . | . . . Full Trace Events . | . . . Feedback Events . | . . . Feedback Blocked . | . . . Robot Schematics Acquired . | . . . Robots Built . | . . . Matter . | . . . Time . | . . . Total Robot Build Rating . | . . . Part Schematics Acquired . | . . . Parts Built . | . . . Matter . | . . . Time . | . . . Total Part Build Rating . | . . . Parts Repaired . | . . . Time . | . . . Parts Recycled . | . . . Recycled Matter . | . . . Retrieved Matter . | . . . Retrieved Components . | . . . Parts Scanalyzed . | . . . Part Schematics Acquired . | . . . Parts Damaged . | . . . Bothacking | -11 -10 -10 ------------ Run | Scr Mat Min Used RIF Installer . | . . . Robots Hacked . | . . . Non-combat . | . . . Combat . | . . . Robot Hacks Applied . | . . . Relay Couplers Released . | . . . Robots Rewired . | . . . Allies Hacked . | . . . Hacks Repelled . | . . . Allies | -11 -10 -10 -------- Run | Scr Mat Min Total Allies 1 | . . 1 Largest Group 1 | . . 1 Highest-Rated Group 31 | . . 31 Highest-Rated Ally 31 | . . 31 Total Orders . | . . . Ally Attacks 2 | . . 2 Total Damage . | . . . Kills . | . . . Allies Corrupted . | . . . Allies Melted . | . . . Intel | -11 -10 -10 ------- Run | Scr Mat Min Robot Analysis Total . | . . . Derelict Logs Recovered . | . . . Drone Launches . | . . . Drone Recoveries . | . . . Exploration | -11 -10 -10 ------------- Run | Scr Mat Min Turns Passed 464 | 42 157 265 Spaces Moved 299 | 33 92 174 Core 1 | 1 . . Treads . | . . . Legs 132 | . . 132 Wheels 166 | 32 92 42 Hover . | . . . Flight . | . . . Fastest Speed 50 | 50 80 80 Average Speed 97 | 79 80 110 Slowest Speed 120 | 80 90 120 Overloaded Moves . | . . . Propulsion Burnouts . | . . . Robots Hopped . | . . . Cave-ins Triggered . | . . . Exploration Rate (%) 19 | 4 27 26 Regions Visited 2 Branch Regions 1 Pre-discovered Areas . | . . . Known Exits Taken . | . . . Unknown Exits Taken 2 | 1 1 . Scrap Searched . | . . . Spaces Dug . | . . . Terrain Destroyed 1 | . . 1 Melee . | . . . Projectile 1 | . . 1 AOE . | . . . Terrain Rammed . | . . . Walls Destroyed . | . . . Machines Disabled . | . . . Actions | -11 -10 -10 --------- Run | Scr Mat Min Total 407 | 48 131 228 Wait 33 | . 6 27 Move 297 | 32 91 174 Hop . | . . . Pick Up 17 | 10 4 3 Fast Attach . | . . . Attach 15 | 6 2 7 Detach . | . . . Swap 1 | . . 1 Drop 1 | . . 1 Fire 42 | . 28 14 Melee . | . . . Ram . | . . . Kick 1 | . . 1 Crush . | . . . Escape Stasis . | . . . Rewire . | . . . Trap . | . . . Miscellaneous . | . . . Route ------- -11/Scrapyard -10/Materials (discovered 2 exits: [*Mat] / [*Min]) -10/Mines History --------- Turn | Location | Event 14 | -11/Scrapyard | Discovered new exit (range 16) 43 | -11/Scrapyard | Entered Materials 126 | -10/Materials | Discovered new exit (range 11) 129 | -10/Materials | Discovered new exit (range 14) 200 | -10/Materials | Entered Mines 203 | -10/Mines | Received a Mining Laser from a helpful Derelict 219 | -10/Mines | Assembled infested the area 254 | -10/Mines | Core integrity fell below 50% 262 | -10/Mines | Core integrity fell below 20% 286 | -10/Mines | Lost 8 parts (2p2n4w) 316 | -10/Mines | Build established: Mutant 319 | -10/Mines | Received a Rocket Launcher from a helpful Derelict 465 | -10/Mines | Destroyed by D-53 Grenadier with Mini Grenade Launcher Last Messages --------------- Kicked T-07 Excavator out of the way. A derelict emerges from the shadows. U8-K3J(g): "Some of my friends down here think you need a mining laser when you travel the depths." U8-K3J(g): "You know what I say? NO!" U8-K3J(g): "Everyone knows a good old rocket launcher goes a long way." U8-K3J(g): "Need to get rid of a swarm? Done. Need a big hole in the wall? Done." U8-K3J(g): "Need a small hole in the wall? Leave that to the mining laser wimps, I say!" U8-K3J(g): "Would you like a rocket launcher? I know I would if I were you, so I'm going to lend you mine." U8-K3J(g) slips back into the shadows. Acquired Rocket Launcher. Acquired 5 matter. EM Pulse Gun destroyed. Aluminum Leg destroyed. Map ----- +----------------------------------------------------+ | ??????????????????????????????????# #????????? | | ??????????????????????????????????# #????????? | | ??????????????????????????????????# #????????? | | ???????????????????????????????#### #????????? | | ???????????????????????????????# #????????? | | ???????????????????????????????# #????????? | | ???????????????????????????????# ####????????? | | ??????????????????????????????## #???????????? | | ?????????????????????????????## #???????????? | | ????????????????????????????## #???????????? | | ????????????????????????????# #???????????? | | ????????????????????????????# ##???????????? | | ????????????????????????????# ##????????????? | | ????????????????????????????# ##????????????? | | ????????????????????????????## ######???????? | | ?????????????? ??????????????# ###?????? | | ????????????? ?????????????# ##????? | | ???????????? ????????????## #????? | | ???????????? ????????????# #????? | | ??????????? ??????????## #????? | | ??????????? |%???####?##% #????? | | ?????????? ! ### ###% #????? | | ???????????# d % ## #???? | | ?????????????# ###?# #???? | | ???????????????# ## d #### ##????# #???? | | ???????????????##?????# @ #?####??????###???? | | ??????????????????????## ##??????###????????? | | ??????????????????????# #???????# ###??????? | | ??????????????????????### ########## ##?????? | | ??????????###???????????# #?????? | | ?????????## #??????????####### #### #?????? | | ????????## ##??????????????# #??# #?????? | | ????????# #??????????????# #??## ##?????? | | ????????# ##?????####????# #???# #??????? | | ????????## ##??### ###### ##?## ##?????? | | ?????????## #### ### #?????? | | ??????????## ###### #?????? | | ???????????# ###????# ##?????? | | ???????????## ##??????## ######??????? | | ????????????##### #????????#####???????????? | | ????????????????## ##????????????????????????? | | ?????????????????####?????????????????????????? | | ??????????????????????????????????????????????? | | | | | | | | | | | | | | | +----------------------------------------------------+ Best States ------------- Heat Dissipation 25 Energy Generation 14 Energy Capacity 160 Matter Stores 300 Matter Capacity 300 Sight Range 16 Terrain Scan Density 10 Evasion (%) 44 Item Schematics ----------------- None Robot Schematics ------------------ None Fabricated ------------ Nothing Alien Tech Used ----------------- None Achievements -------------- None Challenges ------------ None Game ------ Seed SupercompositeWeaponCycler Manual? 0 Play Time 00:08:07 Cumulative 7.4 hours Start 2022.02.18 @ 16:56:12 End 2022.02.18 @ 17:04:14 Sessions 1 Manual Loads 0 Difficulty Rogue Special Mode None Game No. 13 Rogue 13 Adventurer 0 Explorer 0 Win Type - Total 0 Types 0/0/0/0/0/0/0/0/0 Lore% 8 Gallery% 12 Achievement% 10 Wizard Run 0 Options --------- ASCII 0 Keyboard 0 Movement Numpad Keybinds 0 Fullscreen 1 Font 16/Smallcaps Map View 50x54 Tactical HUD 0 Map Filters NONE Filters NONE Steam 1 RUN: 8c90113d-af93-4d94-8662-3c533659bc19